[Event "16th EWICC 2015"]
[Site "Kutaisi"]
[Date "2015.06.03"]
[Round "10"]
[White "Ibrahimova, Sabina"]
[Black "Khurtsidze, Nino"]
[Result "0-1"]
[ECO "B43"]
[WhiteElo "2272"]
[BlackElo "2451"]
[Annotator "Robot 11"]
[PlyCount "93"]
[EventDate "2015.??.??"]
[EventCountry "GEO"]
[TimeControl "900+10"]

1. e4 {[%emt 0:00:02]} c5 {[%emt 0:00:01]} 2. Nf3 {[%emt 0:00:03]} e6 {[%emt 0:
00:01]} 3. d4 {[%emt 0:00:01]} cxd4 {[%emt 0:00:01]} 4. Nxd4 {[%emt 0:00:02]}
a6 {[%emt 0:00:01]} 5. Nc3 {[%emt 0:00:02]} Qc7 {[%emt 0:00:02]} 6. g3 {[%emt
0:00:08]} Bb4 {[%emt 0:00:05]} 7. Nde2 {[%emt 0:00:15]} Nf6 {[%emt 0:00:02]} 8.
Bg2 {[%emt 0:00:01]} O-O {[%emt 0:00:08]} 9. O-O {[%emt 0:00:01]} Be7 {[%emt 0:
00:08]} 10. h3 {[%emt 0:00:31]} Nc6 {[%emt 0:00:05]} 11. f4 {[%emt 0:00:42]} d6
{[%emt 0:00:02]} 12. g4 {[%emt 0:00:18]} b5 {[%emt 0:00:26]} 13. a3 {[%emt 0:
00:19]} Bb7 {[%emt 0:00:01]} 14. g5 {[%emt 0:01:31]} Nd7 {[%emt 0:00:04]} 15.
Be3 {[%emt 0:00:18]} b4 {[%emt 0:01:53]} 16. axb4 {[%emt 0:00:18]} Nxb4 {[%emt
0:00:02]} 17. Ng3 {[%emt 0:03:12]} Rfe8 {[%emt 0:01:22]} 18. h4 {[%emt 0:02:53]
} Rad8 {[%emt 0:03:07]} 19. h5 {[%emt 0:01:49]} d5 {[%emt 0:00:06]} 20. exd5 {
[%emt 0:02:52]} exd5 {[%emt 0:00:18]} 21. Bd4 {[%emt 0:00:50]} Bc5 {[%emt 0:00:
08]} 22. Nf5 {[%emt 0:00:28]} Bxd4+ {[%emt 0:01:01]} 23. Nxd4 {[%emt 0:00:11]}
Nc5 {[%emt 0:00:07]} 24. Nce2 {[%emt 0:01:11]} Ne4 {[%emt 0:00:23]} 25. Ra3 {
[%emt 0:00:28]} a5 {[%emt 0:01:34]} 26. Rh3 {[%emt 0:00:40]} Ba6 {[%emt 0:00:
07]} 27. c3 {[%emt 0:00:02]} Nc6 {[%emt 0:00:13]} 28. Rff3 {[%emt 0:00:15]} Qb6
{[%emt 0:01:16]} 29. Rd3 {[%emt 0:00:13]} Bxd3 {[%emt 0:00:07]} 30. Rxd3 {
[%emt 0:00:01]} Nxd4 {[%emt 0:00:04]} 31. cxd4 {[%emt 0:00:14]} Qxb2 {[%emt 0:
00:16]} 32. h6 {[%emt 0:00:07]} Nxg5 {[%emt 0:00:25]} 33. Rd2 {[%emt 0:00:02]}
Qa3 {[%emt 0:00:32]} 34. fxg5 {[%emt 0:00:03]} Qe3+ {[%emt 0:00:01]} 35. Kh2 {
[%emt 0:00:16]} Qxg5 {[%emt 0:00:02]} 36. hxg7 {[%emt 0:00:12]} Qh4+ {[%emt 0:
01:28]} 37. Kg1 {[%emt 0:00:10]} Rd6 {[%emt 0:00:07]} 38. Rd3 {[%emt 0:00:22]}
Rde6 {[%emt 0:00:10]} 39. Rh3 Qg4 {[%emt 0:00:22]} 40. Qb1 {[%emt 0:00:14]} Rg6
{[%emt 0:00:22]} 41. Ng3 {[%emt 0:00:15]} Qxd4+ {[%emt 0:00:12]} 42. Kh2 {
[%emt 0:00:10]} Qe5 {[%emt 0:00:05]} 43. Qb5 {[%emt 0:00:07]} d4 {[%emt 0:00:
26]} 44. Qd3 {[%emt 0:00:15]} Qf4 {[%emt 0:00:26]} 45. Be4 {[%emt 0:00:09]}
Qf2+ {[%emt 0:00:33]} 46. Kh1 {[%emt 0:00:08]} Rc8 {[%emt 0:00:42]} 47. Qa3 {
[%emt 0:00:29]} 0-1

[Event "16th EWICC 2015"]
[Site "Kutaisi"]
[Date "2015.06.03"]
[Round "10"]
[White "Jalaghonia, Nino"]
[Black "Zaksaite, Salomeja"]
[Result "0-1"]
[ECO "A16"]
[WhiteElo "1865"]
[BlackElo "2203"]
[Annotator "Robot 11"]
[PlyCount "134"]
[EventDate "2015.??.??"]
[EventCountry "GEO"]
[TimeControl "900+10"]

1. c4 {[%emt 0:00:02]} Nf6 {[%emt 0:00:09]} 2. Nc3 {[%emt 0:00:06]} d5 {[%emt
0:00:03]} 3. cxd5 {[%emt 0:00:03]} Nxd5 {[%emt 0:00:01]} 4. g3 {[%emt 0:00:05]}
g6 {[%emt 0:00:14]} 5. Bg2 {[%emt 0:00:02]} Nb6 {[%emt 0:00:06]} 6. d4 {[%emt
0:00:31]} Bg7 {[%emt 0:00:03]} 7. Nf3 {[%emt 0:00:01]} Nc6 {[%emt 0:00:01]} 8.
e3 {[%emt 0:00:10]} O-O {[%emt 0:00:02]} 9. O-O {[%emt 0:00:02]} Re8 {[%emt 0:
00:01]} 10. Bd2 {[%emt 0:02:32]} e5 {[%emt 0:00:25]} 11. dxe5 {[%emt 0:00:04]}
Nxe5 {[%emt 0:00:01]} 12. Nxe5 {[%emt 0:00:05]} Bxe5 {[%emt 0:00:02]} 13. b3 {
[%emt 0:00:50]} c6 {[%emt 0:00:31]} 14. Rc1 {[%emt 0:00:09]} Bg4 {[%emt 0:05:
32]} 15. f3 {[%emt 0:01:34]} Bf5 {[%emt 0:00:17]} 16. e4 {[%emt 0:00:07]} Qd4+
{[%emt 0:00:25]} 17. Kh1 {[%emt 0:00:03]} Be6 {[%emt 0:03:12]} 18. f4 {[%emt 0:
02:00]} Rad8 {[%emt 0:01:37]} 19. Rc2 {[%emt 0:00:19]} Bg7 {[%emt 0:00:31]} 20.
Qc1 {[%emt 0:00:53]} Qd7 {[%emt 0:01:23]} 21. Bf3 {[%emt 0:02:15]} Bg4 {[%emt
0:00:19]} 22. Bxg4 {[%emt 0:00:49]} Qxg4 {[%emt 0:00:01]} 23. e5 {[%emt 0:00:
01]} Nd5 {[%emt 0:00:43]} 24. Nxd5 {[%emt 0:00:52]} Rxd5 {[%emt 0:00:02]} 25.
Bc3 {[%emt 0:00:03]} Red8 {[%emt 0:00:07]} 26. Rcf2 {[%emt 0:00:54]} Rd3 {
[%emt 0:01:14]} 27. Qb2 {[%emt 0:01:18]} h5 {[%emt 0:00:21]} 28. Be1 {[%emt 0:
01:10]} Bf8 {[%emt 0:00:36]} 29. Qe2 {[%emt 0:00:29]} Qe6 {[%emt 0:00:14]} 30.
f5 {[%emt 0:00:20]} Qd5+ {[%emt 0:00:13]} 31. Rg2 {[%emt 0:00:13]} Bc5 {[%emt
0:00:39]} 32. e6 {[%emt 0:00:24]} fxe6 {[%emt 0:00:36]} 33. fxg6 {[%emt 0:00:
13]} Re3 {[%emt 0:00:12]} 34. Qc2 {[%emt 0:00:27]} Qe4 {[%emt 0:00:27]} 35.
Qxe4 {[%emt 0:00:29]} Rxe4 {[%emt 0:00:01]} 36. Bf2 {[%emt 0:00:01]} Bxf2 {
[%emt 0:00:25]} 37. Rgxf2 {[%emt 0:00:01]} Kg7 {[%emt 0:00:09]} 38. Rf7+ {
[%emt 0:00:25]} Kxg6 {[%emt 0:00:01]} 39. h4 {[%emt 0:00:19]} Re1 {[%emt 0:00:
02]} 40. R7f6+ {[%emt 0:00:40]} Kg7 {[%emt 0:00:01]} 41. Rf7+ {[%emt 0:00:02]}
Kg8 {[%emt 0:00:01]} 42. Rxe1 Kxf7 43. Re5 {[%emt 0:00:16]} Rd5 {[%emt 0:00:06]
} 44. Re2 {[%emt 0:00:14]} e5 {[%emt 0:00:24]} 45. Kg2 {[%emt 0:00:02]} Ke6 {
[%emt 0:00:04]} 46. Kf2 {[%emt 0:00:39]} a5 {[%emt 0:00:05]} 47. Ke3 {[%emt 0:
00:05]} Rd4 {[%emt 0:00:04]} 48. Rf2 {[%emt 0:00:04]} Rg4 {[%emt 0:00:10]} 49.
Rg2 {[%emt 0:00:16]} a4 {[%emt 0:00:17]} 50. Kf3 {[%emt 0:00:11]} axb3 {[%emt
0:00:04]} 51. axb3 {[%emt 0:00:01]} Rb4 {[%emt 0:00:05]} 52. Rb2 {[%emt 0:00:
03]} c5 {[%emt 0:00:01]} 53. Kf2 {[%emt 0:00:32]} c4 {[%emt 0:00:17]} 54. g4 {
[%emt 0:00:16]} hxg4 {[%emt 0:00:09]} 55. h5 {[%emt 0:00:01]} Rxb3 {[%emt 0:00:
10]} 56. Rc2 {[%emt 0:00:04]} b5 {[%emt 0:00:04]} 57. h6 {[%emt 0:00:03]} Kf6 {
[%emt 0:00:29]} 58. Rd2 {[%emt 0:00:08]} Kg6 {[%emt 0:00:09]} 59. Rd6+ {[%emt
0:00:02]} Kh7 {[%emt 0:00:01]} 60. Re6 {[%emt 0:00:05]} g3+ {[%emt 0:00:04]}
61. Kg2 {[%emt 0:00:02]} b4 {[%emt 0:00:14]} 62. Kh3 {[%emt 0:00:19]} c3 {
[%emt 0:00:22]} 63. Rc6 {[%emt 0:00:05]} Rb2 {[%emt 0:00:15]} 64. Kxg3 {[%emt
0:00:05]} Rd2 {[%emt 0:00:35]} 65. Kf3 {[%emt 0:00:06]} c2 {[%emt 0:00:22]} 66.
Ke3 {[%emt 0:00:02]} Rh2 {[%emt 0:00:05]} 67. Kd3 {[%emt 0:00:02]} b3 {[%emt 0:
00:01]} 0-1

[Event "16th EWICC 2015"]
[Site "Kutaisi"]
[Date "2015.06.03"]
[Round "10"]
[White "Khomeriki, Ketevan"]
[Black "Giorgadze, Elene"]
[Result "1-0"]
[ECO "C23"]
[WhiteElo "1861"]
[BlackElo "1185"]
[Annotator "Robot 11"]
[PlyCount "69"]
[EventDate "2015.??.??"]
[EventCountry "GEO"]
[TimeControl "900+10"]

1. e4 {[%emt 0:00:02]} e5 {[%emt 0:00:01]} 2. Bc4 {[%emt 0:00:03]} Bc5 {[%emt
0:00:03]} 3. Qh5 {[%emt 0:00:21]} Qe7 {[%emt 0:00:24]} 4. Nf3 {[%emt 0:00:42]}
d6 {[%emt 0:00:27]} 5. d4 {[%emt 0:00:25]} Bxd4 {[%emt 0:00:38]} 6. Ng5 Nh6 7.
c3 {[%emt 0:01:44]} Bb6 {[%emt 0:01:15]} 8. a4 {[%emt 0:00:07]} a6 {[%emt 0:00:
25]} 9. a5 {[%emt 0:00:41]} Ba7 {[%emt 0:00:04]} 10. h3 {[%emt 0:01:19]} Qf6 {
[%emt 0:00:58]} 11. O-O {[%emt 0:00:18]} O-O {[%emt 0:00:29]} 12. Nd2 {[%emt 0:
01:24]} Nc6 {[%emt 0:00:48]} 13. Ndf3 {[%emt 0:00:31]} Ne7 {[%emt 0:01:39]} 14.
Nh4 {[%emt 0:01:09]} Be6 15. Nxh7 {[%emt 0:00:16]} Kxh7 {[%emt 0:02:00]} 16.
Bg5 {[%emt 0:00:03]} Qxg5 {[%emt 0:01:30]} 17. Qxg5 {[%emt 0:00:03]} f6 {[%emt
0:00:43]} 18. Qg3 {[%emt 0:00:57]} Bxc4 {[%emt 0:00:09]} 19. Rfe1 {[%emt 0:00:
08]} f5 {[%emt 0:00:29]} 20. Nf3 {[%emt 0:02:39]} Rf6 {[%emt 0:02:08]} 21. b3 {
[%emt 0:01:16]} Bxb3 {[%emt 0:00:24]} 22. Rab1 {[%emt 0:00:01]} Bc4 {[%emt 0:
00:21]} 23. Rxb7 {[%emt 0:00:06]} fxe4 {[%emt 0:00:32]} 24. Rxc7 {[%emt 0:00:
16]} Bb5 {[%emt 0:01:13]} 25. Rxe7 {[%emt 0:00:07]} Rg6 {[%emt 0:00:16]} 26.
Ng5+ {[%emt 0:00:14]} Kg8 {[%emt 0:00:21]} 27. c4 {[%emt 0:00:26]} Rf8 {[%emt
0:00:16]} 28. Rxa7 {[%emt 0:00:04]} Bxc4 {[%emt 0:00:38]} 29. Rc1 {[%emt 0:00:
15]} d5 {[%emt 0:00:13]} 30. Qxe5 {[%emt 0:00:09]} Rf5 {[%emt 0:00:39]} 31.
Qe8+ {[%emt 0:00:09]} Rf8 {[%emt 0:00:03]} 32. Qxg6 {[%emt 0:00:04]} Rf7 {
[%emt 0:00:15]} 33. Nxf7 {[%emt 0:00:07]} Nxf7 {[%emt 0:00:02]} 34. Rxf7 {
[%emt 0:00:05]} d4 {[%emt 0:00:04]} 35. Qxg7# 1-0

[Event "16th EWICC 2015"]
[Site "Kutaisi"]
[Date "2015.06.03"]
[Round "10"]
[White "Kosteniuk, Alexandra"]
[Black "Gaponenko, Inna"]
[Result "1-0"]
[ECO "B52"]
[WhiteElo "2530"]
[BlackElo "2391"]
[Annotator "Robot 11"]
[PlyCount "83"]
[EventDate "2015.??.??"]
[EventCountry "GEO"]
[TimeControl "900+10"]

1. e4 {[%emt 0:00:02]} c5 {[%emt 0:00:01]} 2. Nf3 {[%emt 0:00:01]} d6 {[%emt 0:
00:01]} 3. Bb5+ {[%emt 0:00:01]} Bd7 {[%emt 0:00:01]} 4. Bxd7+ {[%emt 0:00:02]}
Qxd7 {[%emt 0:00:02]} 5. d4 {[%emt 0:00:01]} cxd4 {[%emt 0:00:12]} 6. Qxd4 {
[%emt 0:00:02]} Nc6 {[%emt 0:00:03]} 7. Qd3 {[%emt 0:00:01]} g6 {[%emt 0:00:34]
} 8. O-O {[%emt 0:00:02]} Bg7 {[%emt 0:00:01]} 9. c4 {[%emt 0:00:01]} Nf6 {
[%emt 0:00:03]} 10. h3 {[%emt 0:00:01]} O-O {[%emt 0:00:08]} 11. Nc3 {[%emt 0:
00:01]} Rfc8 {[%emt 0:01:19]} 12. Rb1 {[%emt 0:00:02]} a6 {[%emt 0:03:32]} 13.
b3 {[%emt 0:02:32]} Rab8 {[%emt 0:00:44]} 14. a4 {[%emt 0:00:50]} Qd8 {[%emt 0:
00:34]} 15. Rd1 {[%emt 0:00:22]} Nd7 {[%emt 0:00:28]} 16. Nd5 {[%emt 0:01:28]}
Nc5 {[%emt 0:07:17]} 17. Qe2 {[%emt 0:00:35]} e6 {[%emt 0:00:01]} 18. Nf4 {
[%emt 0:00:13]} b5 19. Ba3 {[%emt 0:02:10]} Qe7 {[%emt 0:01:07]} 20. axb5 {
[%emt 0:00:40]} axb5 {[%emt 0:00:01]} 21. cxb5 {[%emt 0:02:41]} Na7 {[%emt 0:
00:01]} 22. b6 {[%emt 0:02:17]} Rxb6 {[%emt 0:00:04]} 23. e5 {[%emt 0:00:01]}
Nb5 {[%emt 0:02:11]} 24. exd6 {[%emt 0:00:01]} Qd7 {[%emt 0:00:14]} 25. Bb2 {
[%emt 0:00:57]} Bxb2 {[%emt 0:00:06]} 26. Qxb2 {[%emt 0:00:02]} Rxd6 {[%emt 0:
00:04]} 27. Rdc1 {[%emt 0:00:19]} Nd3 {[%emt 0:00:09]} 28. Nxd3 {[%emt 0:00:03]
} Rxd3 {[%emt 0:00:02]} 29. Ne5 {[%emt 0:00:07]} Rxc1+ {[%emt 0:00:05]} 30.
Qxc1 {[%emt 0:00:01]} Qd8 {[%emt 0:00:15]} 31. Nxd3 {[%emt 0:00:04]} Qxd3 {
[%emt 0:00:01]} 32. Qf1 {[%emt 0:00:07]} Qd5 {[%emt 0:00:04]} 33. Qc4 {[%emt 0:
00:04]} Qf5 {[%emt 0:00:02]} 34. Rd1 {[%emt 0:00:08]} Kg7 {[%emt 0:00:04]} 35.
b4 {[%emt 0:00:19]} Qe5 {[%emt 0:00:22]} 36. Kf1 {[%emt 0:00:34]} Kh6 {[%emt 0:
00:41]} 37. Qc5 {[%emt 0:00:36]} Qb8 {[%emt 0:00:01]} 38. Rd7 {[%emt 0:00:25]}
Kg7 {[%emt 0:00:01]} 39. g3 {[%emt 0:00:42]} Na3 {[%emt 0:00:31]} 40. Qc3+ {
[%emt 0:00:11]} e5 {[%emt 0:00:03]} 41. Qxa3 {[%emt 0:00:03]} Qb5+ {[%emt 0:00:
01]} 42. Qd3 {[%emt 0:00:01]} 1-0

[Event "16th EWICC 2015"]
[Site "Kutaisi"]
[Date "2015.06.03"]
[Round "10"]
[White "Mikadze, Miranda"]
[Black "Tereladze, Sopiko"]
[Result "0-1"]
[ECO "A40"]
[WhiteElo "2233"]
[BlackElo "2128"]
[Annotator "Robot 11"]
[PlyCount "98"]
[EventDate "2015.??.??"]
[EventCountry "GEO"]
[TimeControl "900+10"]

1. d4 {[%emt 0:00:02]} e6 {[%emt 0:00:11]} 2. Nf3 {[%emt 0:00:07]} f5 {[%emt 0:
00:03]} 3. Nc3 {[%emt 0:02:24]} d5 {[%emt 0:00:07]} 4. g4 {[%emt 0:00:29]} Nc6
{[%emt 0:00:46]} 5. Bf4 {[%emt 0:00:33]} Bd6 {[%emt 0:00:45]} 6. Bg5 {[%emt 0:
01:38]} Be7 {[%emt 0:00:07]} 7. Bxe7 {[%emt 0:00:05]} Ngxe7 {[%emt 0:00:04]} 8.
h3 {[%emt 0:01:55]} Qd6 {[%emt 0:00:10]} 9. Qd2 {[%emt 0:00:16]} a6 {[%emt 0:
00:06]} 10. gxf5 {[%emt 0:00:40]} exf5 {[%emt 0:00:14]} 11. Rg1 {[%emt 0:00:08]
} g6 {[%emt 0:00:12]} 12. Ng5 {[%emt 0:01:11]} h6 {[%emt 0:01:06]} 13. Nf3 {
[%emt 0:00:02]} Be6 {[%emt 0:00:01]} 14. h4 {[%emt 0:00:13]} O-O-O {[%emt 0:00:
08]} 15. O-O-O {[%emt 0:00:02]} Kb8 {[%emt 0:00:18]} 16. Bh3 {[%emt 0:00:39]}
Bf7 {[%emt 0:00:43]} 17. e3 {[%emt 0:00:03]} Qf6 {[%emt 0:00:28]} 18. Bf1 {
[%emt 0:01:58]} Be6 {[%emt 0:00:04]} 19. Ne2 {[%emt 0:00:05]} Bc8 {[%emt 0:00:
09]} 20. Nf4 {[%emt 0:00:08]} Rhg8 {[%emt 0:01:12]} 21. Kb1 {[%emt 0:00:06]} g5
{[%emt 0:00:43]} 22. hxg5 {[%emt 0:00:02]} hxg5 {[%emt 0:00:01]} 23. Nd3 {
[%emt 0:00:01]} g4 {[%emt 0:00:06]} 24. Nfe5 {[%emt 0:00:01]} Nxe5 {[%emt 0:00:
31]} 25. Nxe5 {[%emt 0:00:22]} Ng6 {[%emt 0:00:18]} 26. Nxg6 Rxg6 {[%emt 0:00:
22]} 27. c4 {[%emt 0:00:45]} dxc4 {[%emt 0:00:19]} 28. Bxc4 {[%emt 0:00:01]}
Rh6 {[%emt 0:00:14]} 29. Rh1 {[%emt 0:00:34]} Rdh8 {[%emt 0:00:09]} 30. Bd5 {
[%emt 0:00:06]} f4 {[%emt 0:01:03]} 31. Rxh6 {[%emt 0:00:44]} Rxh6 {[%emt 0:00:
37]} 32. e4 {[%emt 0:00:02]} Qg6 {[%emt 0:00:44]} 33. Qxf4 {[%emt 0:00:06]} Rh3
{[%emt 0:00:40]} 34. Rc1 {[%emt 0:00:48]} Qb6 {[%emt 0:00:11]} 35. e5 {[%emt 0:
00:12]} Rd3 {[%emt 0:00:02]} 36. Rc5 {[%emt 0:00:34]} Ka7 {[%emt 0:03:45]} 37.
Kc2 {[%emt 0:00:18]} Qg6 {[%emt 0:00:51]} 38. Kc1 {[%emt 0:00:57]} c6 {[%emt 0:
00:16]} 39. Bf7 {[%emt 0:00:50]} Qh7 {[%emt 0:00:09]} 40. Bd5 {[%emt 0:00:38]}
cxd5 {[%emt 0:00:18]} 41. b3 {[%emt 0:00:06]} Bf5 {[%emt 0:00:49]} 42. Kb2 {
[%emt 0:00:17]} Rf3 {[%emt 0:00:13]} 43. Qd2 {[%emt 0:00:12]} Qh2 {[%emt 0:00:
06]} 44. Rc2 {[%emt 0:00:18]} Bxc2 {[%emt 0:00:04]} 45. Qb4 {[%emt 0:00:00]}
Qh8 {[%emt 0:00:19]} 46. Qc5+ {[%emt 0:00:04]} Ka8 {[%emt 0:00:04]} 47. Kxc2 {
[%emt 0:00:02]} Rxf2+ {[%emt 0:00:04]} 48. Kc3 {[%emt 0:00:01]} Rf3+ {[%emt 0:
00:03]} 49. Kb4 {[%emt 0:00:01]} Qf8 {[%emt 0:00:02]} 0-1

[Event "16th EWICC 2015"]
[Site "Kutaisi"]
[Date "2015.06.03"]
[Round "10"]
[White "Schleining, Zoya"]
[Black "Gaprindashvili, Nona"]
[Result "1-0"]
[ECO "A44"]
[WhiteElo "2375"]
[BlackElo "2302"]
[Annotator "Robot 11"]
[PlyCount "59"]
[EventDate "2015.??.??"]
[EventCountry "GEO"]
[TimeControl "900+10"]

1. d4 {[%emt 0:00:01]} c5 {[%emt 0:00:00]} 2. d5 {[%emt 0:00:02]} e5 {[%emt 0:
00:01]} 3. e4 {[%emt 0:00:03]} d6 {[%emt 0:00:01]} 4. Bb5+ {[%emt 0:00:07]} Nd7
{[%emt 0:00:02]} 5. a4 {[%emt 0:00:02]} g6 {[%emt 0:00:02]} 6. Nf3 {[%emt 0:00:
11]} Bg7 {[%emt 0:00:13]} 7. Nc3 {[%emt 0:00:13]} Nh6 {[%emt 0:00:13]} 8. h4 {
[%emt 0:00:15]} f6 {[%emt 0:00:01]} 9. h5 {[%emt 0:00:37]} g5 {[%emt 0:00:02]}
10. Ne2 {[%emt 0:01:02]} a6 {[%emt 0:01:01]} 11. Bd3 {[%emt 0:00:06]} O-O {
[%emt 0:00:14]} 12. Ng3 {[%emt 0:00:11]} Nb6 {[%emt 0:01:08]} 13. Nd2 {[%emt 0:
00:54]} a5 {[%emt 0:02:13]} 14. Qe2 {[%emt 0:01:14]} Qe7 {[%emt 0:01:21]} 15.
b3 {[%emt 0:00:53]} Kh8 {[%emt 0:00:44]} 16. Bb2 {[%emt 0:00:19]} f5 {[%emt 0:
00:13]} 17. exf5 {[%emt 0:02:41]} Nxd5 {[%emt 0:00:05]} 18. O-O-O {[%emt 0:01:
19]} Nf4 {[%emt 0:00:04]} 19. Qf1 {[%emt 0:00:54]} d5 {[%emt 0:04:22]} 20. f3 {
[%emt 0:00:31]} b6 {[%emt 0:02:35]} 21. c4 {[%emt 0:00:37]} Nxf5 {[%emt 0:02:
29]} 22. Bxf5 {[%emt 0:00:19]} Rxf5 {[%emt 0:00:21]} 23. h6 {[%emt 0:00:08]}
Bf6 {[%emt 0:00:04]} 24. cxd5 {[%emt 0:00:22]} Nxd5 {[%emt 0:00:27]} 25. Qd3 {
[%emt 0:01:27]} Nb4 {[%emt 0:00:14]} 26. Qe4 {[%emt 0:00:15]} Bb7 {[%emt 0:00:
17]} 27. Qxf5 {[%emt 0:00:05]} Rf8 {[%emt 0:00:18]} 28. Nc4 {[%emt 0:00:33]}
Bc8 {[%emt 0:00:15]} 29. Qe4 {[%emt 0:00:15]} Be6 {[%emt 0:00:06]} 30. Nh5 {
[%emt 0:00:16]} 1-0

[Event "16th EWICC 2015"]
[Site "Kutaisi"]
[Date "2015.06.03"]
[Round "10"]
[White "Vakhania, Alexandra"]
[Black "Tedoshvili, Ana"]
[Result "1-0"]
[ECO "D03"]
[WhiteElo "2130"]
[BlackElo "1805"]
[Annotator "Robot 11"]
[PlyCount "65"]
[EventDate "2015.??.??"]
[EventCountry "GEO"]
[TimeControl "900+10"]

1. Nf3 {[%emt 0:00:03]} Nf6 {[%emt 0:00:03]} 2. d4 {[%emt 0:00:01]} d5 {[%emt
0:00:03]} 3. Bg5 {[%emt 0:00:01]} e6 {[%emt 0:00:02]} 4. e3 {[%emt 0:00:02]}
Be7 {[%emt 0:00:03]} 5. Bd3 {[%emt 0:00:02]} b6 {[%emt 0:00:06]} 6. Qe2 {[%emt
0:00:02]} Bb7 {[%emt 0:00:02]} 7. Nbd2 {[%emt 0:00:02]} c5 {[%emt 0:00:02]} 8.
c3 {[%emt 0:00:01]} O-O {[%emt 0:00:13]} 9. Ne5 {[%emt 0:00:01]} Nbd7 {[%emt 0:
00:04]} 10. f4 {[%emt 0:00:04]} Ne4 {[%emt 0:00:05]} 11. Bxe7 {[%emt 0:00:14]}
Qxe7 {[%emt 0:00:01]} 12. O-O-O {[%emt 0:00:28]} a5 {[%emt 0:00:24]} 13. Bb5 {
[%emt 0:02:22]} Ndf6 {[%emt 0:00:08]} 14. Ndf3 {[%emt 0:00:02]} c4 {[%emt 0:00:
05]} 15. g4 {[%emt 0:00:09]} a4 {[%emt 0:00:07]} 16. g5 {[%emt 0:00:04]} Nh5 {
[%emt 0:00:04]} 17. Nd2 {[%emt 0:00:24]} Nxc3 {[%emt 0:00:50]} 18. bxc3 {[%emt
0:00:05]} Qa3+ {[%emt 0:00:01]} 19. Kb1 {[%emt 0:00:01]} Qxc3 {[%emt 0:00:02]}
20. Nf1 {[%emt 0:02:26]} a3 {[%emt 0:00:16]} 21. Qd2 {[%emt 0:00:39]} Qxd2 {
[%emt 0:01:38]} 22. Rxd2 {[%emt 0:00:01]} Ra5 {[%emt 0:00:00]} 23. Bc6 {[%emt
0:00:32]} Bxc6 {[%emt 0:00:50]} 24. Nxc6 Rb5+ 25. Kc1 {[%emt 0:00:08]} Ra8 {
[%emt 0:00:56]} 26. Ng3 {[%emt 0:00:03]} Nxg3 {[%emt 0:00:04]} 27. hxg3 {[%emt
0:00:01]} c3 {[%emt 0:00:07]} 28. Rdh2 {[%emt 0:00:07]} h6 {[%emt 0:00:25]} 29.
gxh6 {[%emt 0:00:03]} g6 {[%emt 0:00:01]} 30. h7+ {[%emt 0:00:07]} Kh8 {[%emt
0:00:00]} 31. Ne5 {[%emt 0:00:07]} Ra7 {[%emt 0:00:06]} 32. Rh6 {[%emt 0:00:11]
} Rb2 {[%emt 0:00:31]} 33. Rxg6 {[%emt 0:00:13]} 1-0

[Event "16th EWICC 2015"]
[Site "Kutaisi"]
[Date "2015.06.03"]
[Round "10"]
[White "Zhukova, Natalia"]
[Black "Gvetadze, Sofio"]
[Result "1-0"]
[ECO "D15"]
[WhiteElo "2456"]
[BlackElo "2319"]
[Annotator "Robot 11"]
[PlyCount "69"]
[EventDate "2015.??.??"]
[EventCountry "GEO"]
[TimeControl "900+10"]

1. c4 {[%emt 0:00:02]} c6 {[%emt 0:00:05]} 2. d4 {[%emt 0:00:03]} d5 {[%emt 0:
00:01]} 3. Nf3 {[%emt 0:00:02]} Nf6 {[%emt 0:00:01]} 4. Nc3 {[%emt 0:00:01]} a6
{[%emt 0:00:01]} 5. g3 {[%emt 0:00:07]} dxc4 {[%emt 0:00:28]} 6. Ne5 {[%emt 0:
00:02]} b5 {[%emt 0:01:17]} 7. Bg2 {[%emt 0:00:05]} Bb7 {[%emt 0:00:21]} 8. O-O
{[%emt 0:00:12]} e6 {[%emt 0:00:16]} 9. b3 {[%emt 0:01:19]} cxb3 {[%emt 0:00:
57]} 10. axb3 {[%emt 0:00:02]} Be7 {[%emt 0:00:13]} 11. Bb2 {[%emt 0:00:31]}
O-O {[%emt 0:00:12]} 12. Qc2 {[%emt 0:00:09]} Qb6 {[%emt 0:05:56]} 13. Ne4 {
[%emt 0:01:05]} Rd8 {[%emt 0:01:23]} 14. Ng5 {[%emt 0:00:44]} Rf8 {[%emt 0:01:
49]} 15. d5 {[%emt 0:01:47]} h6 {[%emt 0:00:02]} 16. dxc6 {[%emt 0:02:49]} hxg5
{[%emt 0:00:08]} 17. cxb7 {[%emt 0:00:02]} Ra7 {[%emt 0:00:03]} 18. Rfd1 {
[%emt 0:00:44]} Rxb7 {[%emt 0:01:49]} 19. Bxb7 {[%emt 0:00:02]} Qxb7 {[%emt 0:
00:01]} 20. Rac1 {[%emt 0:00:15]} Nd5 {[%emt 0:00:09]} 21. Nd3 {[%emt 0:00:43]}
Bd8 {[%emt 0:01:14]} 22. Nc5 {[%emt 0:00:35]} Qa7 {[%emt 0:00:19]} 23. Qe4 {
[%emt 0:00:37]} Nf6 {[%emt 0:00:30]} 24. Qe5 {[%emt 0:00:43]} Nc6 {[%emt 0:01:
06]} 25. Qxg5 {[%emt 0:00:11]} e5 {[%emt 0:00:03]} 26. Qf5 {[%emt 0:00:40]} Bb6
{[%emt 0:00:16]} 27. Nd7 {[%emt 0:00:26]} Nd4 {[%emt 0:00:22]} 28. Nxf6+ {
[%emt 0:00:32]} gxf6 {[%emt 0:00:02]} 29. Bxd4 {[%emt 0:00:13]} Bxd4 {[%emt 0:
00:04]} 30. Qxf6 {[%emt 0:00:30]} Re8 {[%emt 0:00:07]} 31. e3 {[%emt 0:00:12]}
Bb6 {[%emt 0:00:22]} 32. Qf5 {[%emt 0:00:37]} Qe7 {[%emt 0:00:16]} 33. Rc6 {
[%emt 0:00:15]} Bd8 {[%emt 0:00:11]} 34. Rd7 {[%emt 0:00:20]} Qf8 {[%emt 0:00:
13]} 35. Rg6+ 1-0

[Event "16th EWICC 2015"]
[Site "Kutaisi"]
[Date "2015.06.03"]
[Round "10"]
[White "Mammadova, Narmin"]
[Black "Khomeriki, Nino"]
[Result "0-1"]
[ECO "C47"]
[WhiteElo "2117"]
[BlackElo "2228"]
[Annotator "Robot 11"]
[PlyCount "60"]
[EventDate "2015.??.??"]
[EventCountry "GEO"]
[TimeControl "900+10"]

1. e4 e5 2. Nf3 Nc6 3. Nc3 Nf6 4. h3 {[%emt 0:00:16]} Bb4 {[%emt 0:01:36]} 5.
Bd3 {[%emt 0:00:03]} a6 {[%emt 0:02:02]} 6. O-O {[%emt 0:00:16]} d6 {[%emt 0:
00:02]} 7. a3 {[%emt 0:00:09]} Bc5 {[%emt 0:00:13]} 8. b4 {[%emt 0:00:07]} Ba7
{[%emt 0:00:11]} 9. Bb2 {[%emt 0:00:39]} h6 {[%emt 0:00:18]} 10. b5 {[%emt 0:
01:25]} axb5 {[%emt 0:01:04]} 11. Bxb5 {[%emt 0:00:04]} O-O {[%emt 0:00:19]}
12. Re1 {[%emt 0:00:43]} Ne7 {[%emt 0:02:34]} 13. d4 {[%emt 0:01:25]} c6 {
[%emt 0:00:01]} 14. Bf1 {[%emt 0:01:05]} Ng6 {[%emt 0:01:30]} 15. Qd2 {[%emt 0:
01:24]} Re8 {[%emt 0:01:09]} 16. Rad1 {[%emt 0:02:10]} Qc7 {[%emt 0:00:21]} 17.
dxe5 {[%emt 0:04:00]} dxe5 {[%emt 0:00:01]} 18. Nb1 {[%emt 0:00:29]} Be6 {
[%emt 0:00:45]} 19. g3 {[%emt 0:01:36]} Rad8 {[%emt 0:00:32]} 20. Qe2 {[%emt 0:
00:08]} Nh5 {[%emt 0:00:16]} 21. Kh2 {[%emt 0:01:24]} Qb6 {[%emt 0:00:28]} 22.
Rxd8 {[%emt 0:00:38]} Rxd8 {[%emt 0:00:05]} 23. Bxe5 {[%emt 0:00:34]} Nxe5 {
[%emt 0:00:06]} 24. Nxe5 {[%emt 0:00:02]} Qxf2+ {[%emt 0:00:02]} 25. Qxf2 {
[%emt 0:00:04]} Bxf2 {[%emt 0:00:01]} 26. Re2 {[%emt 0:00:25]} Bxg3+ {[%emt 0:
00:03]} 27. Kg2 {[%emt 0:00:08]} Bxe5 {[%emt 0:00:03]} 28. Rf2 {[%emt 0:00:09]}
Nf4+ {[%emt 0:00:13]} 29. Kh1 {[%emt 0:00:12]} Rd1 {[%emt 0:00:02]} 30. Nd2 {
[%emt 0:00:07]} Bxh3 {[%emt 0:00:19]} 0-1